bitfinex-derivatives/quotes_ETHF0:USTF0_20250709
["timestamp","ask_amount","ask_price","bid_price","bid_amount"]
[1752061717758,5.972,2630.3,2630.1,5.88081574]
[1752061721856,5.972,2630.3,2630.1,3.2078]
[1752061722657,0.6814,2630.4,2630.1,3.2078]
[1752061724267,1.3761,2630.3,2629.8,33.26391588]
[1752061724962,1.40091574,2630.1,2629.8,4.90560014]
[1752061725157,1.3761,2630.0,2629.8,3.2078]
[1752061725364,1.3761,2630.0,2629.7,1.69780014]
[1752061725365,1.3761,2630.0,2629.6,26.215]
[1752061725556,1.3761,2630.0,2629.5,4.90560014]
[1752061725557,0.6917,2629.9,2629.5,4.90560014]
[1752061725755,0.6917,2629.9,2629.6,26.215]
[1752061726165,0.6917,2629.9,2629.6,1.40091574]
[1752061726360,0.6917,2629.9,2629.7,26.215]
[1752061730072,5.972,2630.2,2629.8,1.40091574]
[1752061730769,5.972,2630.2,2629.8,4.60871574]
[1752061731275,5.972,2630.2,2629.8,6.64241574]
[1752061731675,5.972,2630.2,2630.0,1.40091574]
[1752061732175,5.972,2630.2,2629.8,5.33121574]
[1752061732674,5.972,2630.2,2630.0,1.40091574]
[1752061734373,5.972,2630.3,2630.0,1.40091574]
[1752061737476,5.972,2630.3,2629.9,1.40091574]
[1752061737673,5.972,2630.3,2629.9,3.09871588]
[1752061737971,5.972,2630.3,2629.9,2.73431574]
[1752061738378,5.972,2630.3,2629.9,4.43211588]
[1752061739976,5.972,2630.3,2629.9,3.09871588]
[1752061740276,5.972,2630.3,2630.0,1.69780014]
[1752061741075,2.77881574,2630.2,2629.9,1.69780014]
[1752061741271,3.2078,2630.0,2629.7,1.69780014]
[1752061741477,3.2078,2630.0,2629.6,1.69780014]
[1752061741478,1.3779,2629.9,2629.6,1.69780014]
[1752061741672,40.8,2629.8,2629.6,1.69780014]
[1752061742074,0.7017,2629.7,2629.6,3.09871588]
[1752061742274,0.7017,2629.7,2629.6,1.40091574]
[1752061742477,0.7017,2629.7,2629.3,1.69780014]
[1752061742678,1.3308,2629.6,2629.3,27.90280014]
[1752061742879,1.3308,2629.6,2629.3,1.69780014]
[1752061743378,1.3308,2629.6,2629.2,6.30651588]
[1752061743774,1.3308,2629.6,2629.3,1.69780014]
[1752061744280,1.3308,2629.6,2629.2,6.30651588]
[1752061744678,1.3308,2629.6,2629.2,4.90560014]
[1752061746376,7.3028,2629.6,2629.2,4.90560014]
[1752061747883,1.2462,2629.5,2629.2,4.90560014]
[1752061748284,5.972,2629.4,2629.2,3.2078]
[1752061748686,0.7522,2629.3,2629.1,1.69780014]
[1752061748874,0.7522,2629.3,2629.0,1.70351138]
[1752061748875,3.40651574,2629.3,2629.0,1.70351138]
[1752061749280,1.2534,2629.2,2629.0,1.70351138]
[1752061749683,0.7522,2629.3,2629.0,1.70351138]
[1752061750085,0.7522,2629.3,2629.1,1.40091574]
[1752061751190,0.7522,2629.3,2629.1,3.09871588]
[1752061751986,5.972,2629.4,2629.2,1.69780014]
[1752061752187,6.6739,2629.6,2629.2,1.69780014]
[1752061752388,6.6739,2629.6,2629.3,1.40091574]
[1752061752687,6.6739,2629.6,2629.3,3.40351574]
[1752061753384,5.972,2629.6,2629.5,1.40091574]
[1752061753786,5.972,2629.6,2629.3,2.12521574]
[1752061754385,5.972,2629.9,2629.5,4.60871574]
[1752061754589,5.972,2629.9,2629.7,1.40091574]
[1752061756091,5.972,2629.9,2629.8,2.0528]
[1752061756491,0.7347,2630.0,2629.8,5.2606]
[1752061756693,0.7347,2630.0,2629.9,1.40091574]
[1752061757187,6.62653197,2630.5,2629.9,1.40091574]
[1752061757393,3.41873197,2630.7,2630.4,4.60871574]
[1752061757590,3.41873197,2630.8,2630.6,1.40091574]
[1752061757791,3.41873197,2631.0,2630.7,5.86151574]
[1752061757991,3.41873197,2631.0,2630.8,1.2528]
[1752061758191,4.55830929,2631.3,2630.9,1.40091574]
[1752061758394,4.55830929,2631.6,2631.2,3.2078]
[1752061758890,0.7157,2631.8,2631.2,3.2078]
[1752061759090,0.7157,2631.8,2631.2,4.4606]
[1752061759291,0.7157,2631.8,2631.3,1.40091574]
[1752061759486,0.7157,2631.8,2631.3,2.65371574]
[1752061759684,0.7157,2631.8,2631.5,1.40091574]
[1752061760191,1.40091574,2631.7,2631.2,3.2078]
[1752061760393,1.40091574,2631.5,2631.2,3.2078]
[1752061760594,2.77431574,2631.6,2631.2,3.2078]
[1752061760998,5.98211574,2631.6,2630.9,4.90560014]
[1752061761192,4.5812,2631.6,2630.8,3.70420014]
[1752061761396,1.40091574,2631.1,2630.7,1.69780014]
[1752061761695,2.0634,2631.0,2630.6,3.2078]
[1752061762598,2.0634,2631.0,2630.6,4.60871574]
[1752061762897,2.0634,2631.0,2630.6,3.2078]
[1752061764094,5.85353317,2630.7,2630.4,0.00571124]
[1752061764297,1.3381,2630.6,2630.4,0.00571124]
[1752061764695,44.0078,2630.7,2630.4,0.00571124]
[1752061764896,40.8,2630.7,2630.4,3.21351124]
[1752061765193,0.7166,2630.8,2630.4,3.21351124]
[1752061766000,0.7166,2630.8,2630.4,1.38271124]
[1752061766299,0.7166,2630.8,2630.4,4.59051124]
[1752061768101,0.7166,2630.8,2630.5,2.64573317]
[1752061768401,0.7166,2630.8,2630.5,4.00523317]
[1752061769002,0.7166,2630.8,2630.5,1.3595]
[1752061769303,0.7166,2630.8,2630.4,0.00571124]
[1752061770996,0.7166,2630.8,2630.4,1.26031124]
[1752061772306,0.7166,2630.8,2630.4,0.00571124]
[1752061772904,5.972,2630.7,2630.4,0.00571124]
[1752061776301,10.5547,2630.7,2630.4,0.00571124]
[1752061778908,5.972,2630.6,2630.4,0.00571124]
[1752061779109,7.3539,2630.6,2630.4,0.00571124]
[1752061779309,5.972,2630.5,2630.4,0.00571124]
[1752061779509,7.3539,2630.5,2630.4,0.00571124]
[1752061780810,7.3539,2630.5,2629.8,3.2078]
[1752061781010,9.9183,2630.4,2629.8,3.2078]
[1752061781311,1.3819,2630.3,2629.8,3.2078]
[1752061782002,1.3819,2630.3,2629.8,3.21350017]
[1752061784509,1.3819,2630.3,2629.8,0.00570017]
[1752061784715,3.2078,2630.1,2629.8,0.00570017]
[1752061784916,1.3071,2630.0,2629.8,0.00570017]
[1752061785211,1.9974,2630.0,2629.8,0.00570017]
[1752061790420,0.6903,2630.0,2629.8,0.00570017]
[1752061790621,5.972,2629.9,2629.8,0.00570017]
[1752061794124,7.3352,2629.9,2629.8,0.00570017]
[1752061795426,5.972,2629.9,2629.8,0.00570017]
[1752061796833,5.972,2629.9,2629.8,2.03550017]
[1752061797334,5.972,2629.9,2629.8,0.00570017]
[1752061797934,5.972,2629.9,2629.8,1.26950017]
[1752061798632,5.972,2629.9,2629.8,0.00570017]
[1752061799036,8.03,2629.9,2629.8,0.00570017]
[1752061799237,6.6629,2629.9,2629.8,0.00570017]
[1752061799535,5.972,2629.9,2629.8,0.00570017]
[1752061799925,5.972,2629.9,2629.8,1.33380017]
[1752061800432,5.972,2629.9,2629.8,0.00570017]
[1752061802034,7.37231002,2629.9,2629.8,0.00570017]
[1752061802430,5.972,2629.9,2629.8,0.00570017]
[1752061804035,7.3163,2629.9,2629.8,0.00570017]
[1752061804436,12.3163,2629.9,2629.3,1.69780014]
[1752061804731,1.40031002,2629.7,2629.3,1.69780014]
[1752061804934,3.2078,2629.6,2629.3,1.69780014]
[1752061805437,3.2078,2629.6,2629.2,1.69780014]
[1752061805635,5.972,2629.5,2629.2,1.69780014]
[1752061806133,0.7065,2629.4,2629.2,1.69780014]
[1752061806932,0.7065,2629.4,2629.1,3.09811016]
[1752061807130,0.7065,2629.4,2629.1,1.40031002]
[1752061807338,0.7065,2629.4,2629.2,1.352]
[1752061809739,5.972,2629.3,2629.1,1.69780014]
[1752061810440,5.972,2629.3,2629.1,3.09811016]
[1752061810634,5.972,2629.3,2629.2,1.3248]
[1752061812340,5.972,2629.3,2629.1,1.69780014]
[1752061814042,5.972,2629.3,2629.1,3.09811016]
[1752061814343,5.972,2629.5,2629.2,1.29]
[1752061814641,5.972,2629.5,2629.3,1.40031002]
[1752061814843,5.972,2629.5,2629.3,2.11811002]
[1752061815144,5.972,2629.5,2629.4,1.29]
[1752061820344,5.972,2629.7,2629.4,1.29]
[1752061821348,5.972,2629.7,2629.3,2.11811002]
[1752061821945,5.972,2629.7,2629.3,3.45851002]
[1752061822247,5.972,2629.7,2629.3,5.15631016]
[1752061822748,5.972,2629.7,2629.3,3.45851002]
[1752061823149,7.37231002,2629.7,2629.3,0.7178]
[1752061823350,8.64451002,2629.7,2629.2,1.69780014]
[1752061823647,1.2722,2629.6,2629.2,1.69780014]
[1752061824649,4.48,2629.6,2629.2,1.69780014]
[1752061826350,5.972,2629.5,2629.3,1.69780014]
[1752061827052,5.972,2629.5,2629.2,1.69780014]
[1752061827053,0.7034,2629.4,2629.2,1.69780014]
[1752061827251,2.0331,2629.4,2629.2,1.69780014]
[1752061827753,2.0331,2629.4,2629.1,1.69780014]
[1752061828253,3.2078,2629.9,2629.2,6.30591016]
[1752061828552,3.2078,2629.9,2629.4,1.40031002]
[1752061829056,3.2078,2629.9,2629.3,3.03960014]
[1752061829352,4.5442,2629.9,2629.3,3.03960014]
[1752061829548,5.94451002,2629.9,2629.3,3.03960014]
[1752061829751,1.3364,2629.8,2629.3,3.03960014]
[1752061830047,1.40031002,2629.7,2629.3,3.03960014]
[1752061830355,1.40031002,2629.7,2629.3,1.69780014]
[1752061830557,0.7158,2629.6,2629.3,1.69780014]
[1752061832852,1.3736,2629.5,2629.3,1.69780014]
[1752061836552,2.77391002,2629.5,2629.3,1.69780014]
[1752061836960,1.3238,2629.4,2629.3,1.69780014]
[1752061837156,1.3238,2629.4,2629.2,1.69780014]
[1752061837462,4.60811002,2629.3,2629.2,1.69780014]
[1752061837654,4.60811002,2629.3,2629.1,1.69780014]
[1752061837854,3.42381002,2629.2,2629.1,1.69780014]
[1752061840159,3.42381002,2629.2,2629.0,0.00570017]
[1752061840358,1.3419,2629.1,2629.0,0.00570017]
[1752061846359,7.3139,2629.1,2629.0,0.00570017]
[1752061849368,7.3139,2629.1,2628.5,1.69853922]
[1752061849575,1.40031002,2628.7,2628.5,1.69853922]
[1752061849773,0.7149,2628.6,2628.5,1.69853922]
[1752061849974,0.7149,2628.6,2628.4,1.69853922]
[1752061851975,0.7149,2628.6,2628.4,3.07993922]
[1752061852175,6.6869,2628.6,2628.4,3.07993922]
[1752061853775,6.6869,2628.6,2628.4,1.3814]
[1752061857581,1.40031002,2628.5,2628.4,1.3814]
[1752061857884,1.40031002,2628.5,2628.2,1.69853922]
[1752061858884,1.40031002,2628.5,2628.1,2.39603922]
[1752061859086,1.40031002,2628.5,2628.1,3.69953922]
[1752061860186,1.40031002,2628.5,2628.2,1.69853922]
[1752061860686,6.6869,2628.6,2628.1,3.69953922]
[1752061860887,6.6869,2628.6,2628.2,1.3035]
[1752061861283,6.6869,2628.6,2628.2,3.00203922]
[1752061861484,6.6869,2628.6,2628.2,1.3035]
[1752061861685,6.6869,2628.6,2628.1,3.79634924]
[1752061861686,5.972,2628.5,2628.3,1.3658]
[1752061862791,5.972,2628.5,2628.3,2.76611002]
[1752061863289,5.972,2628.5,2628.4,1.3658]
[1752061867592,5.972,2628.7,2628.4,1.3658]
[1752061867793,5.972,2628.7,2628.5,0.6953]
[1752061868493,7.37231002,2628.7,2628.5,0.6953]
[1752061868696,7.37231002,2628.7,2628.3,1.69853922]
[1752061868994,4.60811002,2628.5,2628.2,1.69853922]
[1752061869194,1.40031002,2628.3,2628.2,1.69853922]
[1752061870393,0.6813,2628.4,2628.2,1.69853922]
[1752061871195,3.2078,2628.5,2628.2,1.69853922]
[1752061871397,3.2078,2628.5,2628.3,1.3789]
[1752061871597,4.60811002,2628.5,2628.2,1.69853922]
[1752061872498,4.60811002,2628.5,2628.2,1.69853922]
[1752061872999,1.40031002,2628.5,2628.2,1.69853922]
[1752061873195,1.40031002,2628.5,2628.2,3.03083922]
[1752061873395,5.972,2628.5,2628.2,3.03083922]
[1752061873597,5.972,2628.5,2628.3,1.3323]
[1752061873990,5.972,2628.5,2628.3,4.5401]
[1752061875399,5.972,2628.5,2628.3,6.23863922]
[1752061875702,5.972,2628.5,2628.4,1.3323]
[1752061877195,5.972,2628.5,2628.4,3.03083922]
[1752061878199,5.972,2628.5,2628.4,1.3323]
[1752061878803,5.972,2628.5,2628.4,3.03083922]
[1752061879000,5.972,2628.5,2628.4,1.3323]
[1752061879303,5.972,2628.5,2628.4,3.03083922]
[1752061879602,7.37231002,2628.7,2628.4,3.03083922]
[1752061880003,7.37231002,2628.7,2628.4,1.69853922]
[1752061880798,8.69591002,2628.7,2628.4,1.69853922]
[1752061881298,1.40031002,2628.5,2628.4,1.69853922]
[1752061881502,7.2956,2628.7,2628.4,1.69853922]
[1752061881704,1.40031002,2628.6,2628.4,1.69853922]
[1752061882398,1.40031002,2628.6,2628.3,3.2078]
[1752061882603,1.40031002,2628.6,2628.4,1.70351809]
[1752061883596,5.972,2628.7,2628.4,1.70351809]
[1752061884002,5.972,2628.7,2628.5,0.7314]
[1752061884696,5.972,2628.7,2628.5,2.0287]
[1752061884902,5.972,2628.7,2628.5,3.73221809]
[1752061885296,9.1798,2628.8,2628.5,3.73221809]
[1752061885699,0.00570017,2629.3,2628.7,4.60811002]
[1752061885900,0.00570017,2629.3,2629.2,3.2078]
[1752061886102,0.00570017,2629.3,2629.2,6.8052325]
[1752061886303,0.00570017,2629.3,2629.2,10.2674]
[1752061887306,0.00570017,2629.3,2629.2,11.96513976]
[1752061888200,0.00570017,2629.3,2629.2,11.66771002]
[1752061888403,0.00570017,2629.3,2629.2,13.36535573]
[1752061889407,0.00570017,2629.3,2629.2,6.66771002]
[1752061890809,0.00570017,2629.3,2629.2,8.93694252]
[1752061891013,0.00570017,2629.3,2629.2,13.93694252]
[1752061891208,0.00570017,2629.3,2629.2,8.93694252]
[1752061891407,0.00570017,2629.3,2629.2,8.36183805]
[1752061893208,0.00570017,2629.3,2629.2,6.66771002]
[1752061893414,0.00570017,2629.3,2629.2,5.2674]
[1752061893914,0.00570017,2629.3,2629.2,3.2078]
[1752061898008,1.40601019,2629.3,2629.2,3.2078]
[1752061898213,2.74571019,2629.3,2629.2,3.2078]
[1752061898414,1.34540017,2629.3,2629.2,3.2078]
[1752061899211,0.00570017,2629.3,2629.2,3.2078]
[1752061901619,0.00570017,2629.3,2629.2,55.8508]
[1752061902018,0.00570017,2629.3,2629.2,57.1051]
[1752061904218,0.00570017,2629.3,2629.2,62.1051]
[1752061904418,0.00570017,2629.3,2629.2,63.79922803]
[1752061904615,0.00570017,2629.3,2629.2,62.1051]
[1752061904816,0.00570017,2629.3,2629.2,64.3743325]
[1752061908421,0.00570017,2629.3,2629.2,59.3743325]
[1752061912428,0.00570017,2629.3,2629.2,4.60811002]
[1752061912627,0.00570017,2629.3,2629.2,30.88611002]
[1752061912819,0.00570017,2629.3,2629.2,32.14401002]
[1752061913328,0.7086,2629.8,2629.2,34.40590703]
[1752061913526,0.7086,2629.8,2629.7,3.2078]
[1752061913827,0.7086,2629.8,2629.7,29.4698]
[1752061924032,2.10891002,2629.8,2629.7,29.4698]
[1752061924334,2.10891002,2629.8,2629.7,3.2078]
[1752061927234,0.7086,2629.8,2629.7,3.2078]
[1752061929634,0.7086,2629.8,2629.7,29.4168]
[1752061931841,1.9529,2629.8,2629.7,29.4168]
[1752061932343,0.7086,2629.8,2629.7,29.4168]
[1752061938948,0.7086,2629.8,2629.7,31.11682797]
[1752061939157,1.40031002,2629.9,2629.7,31.11682797]
[1752061940349,1.40031002,2629.9,2629.7,4.90782797]
[1752061940549,1.40031002,2629.9,2629.7,3.2078]
[1752061940946,5.46442538,2630.1,2629.7,3.2078]
[1752061941148,1.40031002,2630.0,2629.7,3.2078]
[1752061941548,1.40031002,2630.0,2629.8,0.7399]
[1752061941849,5.46442538,2630.1,2629.8,0.7399]
[1752061942043,4.12362538,2630.1,2629.8,0.7399]
[1752061942244,0.7199,2630.1,2629.8,0.7399]
[1752061943450,4.12362538,2630.1,2629.8,0.7399]
[1752061943853,1.40031002,2630.0,2629.8,0.7399]
[1752061945054,2.69981002,2630.0,2629.7,3.2078]
[1752061946752,1.40031002,2630.0,2629.7,3.2078]
[1752061950259,1.40031002,2630.0,2629.7,4.5842]
[1752061951459,1.40031002,2630.0,2629.7,3.2078]
[1752061952661,1.40031002,2629.8,2629.7,3.2078]
[1752061956459,6.40031002,2629.8,2629.3,5.46969701]
[1752061956664,1.40031002,2629.6,2629.3,3.9272]
[1752061956864,1.40031002,2629.6,2629.3,5.2094]
[1752061957159,1.40031002,2629.6,2629.3,3.9272]
[1752061957464,1.40031002,2629.4,2629.3,3.2078]
[1752061957664,1.40031002,2629.4,2629.1,2.26189701]
[1752061957865,0.6904,2629.3,2629.1,3.00519701]
[1752061959565,1.40031002,2629.4,2629.1,3.00519701]
[1752061959765,1.40031002,2629.4,2629.1,2.0812]
[1752061961969,0.7132,2629.5,2629.1,2.0812]
[1752061962172,0.7132,2629.5,2629.2,1.3414]
[1752061962173,5.972,2629.4,2629.2,1.3414]
[1752061964173,5.972,2629.4,2629.3,3.2078]
[1752061964969,5.972,2629.4,2629.3,4.5315]
[1752061967168,5.972,2629.4,2629.3,1.3237]
[1752061968075,46.772,2629.6,2629.3,1.3237]
[1752061976780,48.17231002,2629.6,2629.2,29.4098]
[1752061979080,48.17231002,2629.6,2629.2,30.769]
[1752061979388,5.972,2629.6,2629.3,1.40031002]
[1752061979578,5.972,2629.6,2629.5,4.60811002]
[1752061980083,3.40372538,2629.9,2629.5,4.60811002]
[1752061980284,44.20372538,2629.9,2629.6,2.0267]
[1752061980785,44.20372538,2629.9,2629.8,3.2078]
[1752061980985,46.772,2629.9,2629.8,3.2078]
[1752061983683,46.772,2629.9,2629.6,2.0267]
[1752061984183,46.772,2629.9,2629.6,0.7191]
[1752061984386,48.0224,2629.9,2629.4,30.1228]
[1752061986187,1.40031002,2629.8,2629.4,30.1228]
[1752061986387,1.40031002,2629.8,2629.4,31.4124]
[1752061988890,1.40031002,2629.8,2629.4,33.67429701]
[1752061990191,1.40031002,2629.8,2629.6,3.2078]
[1752061991194,46.772,2629.9,2629.5,1.2486]
[1752061991383,46.772,2629.9,2629.6,3.2078]
[1752061992995,5.972,2629.9,2629.6,3.2078]
[1752061993496,46.772,2629.9,2629.6,3.2078]
[1752061993794,46.772,2629.9,2629.5,1.2486]
[1752061996493,1.40031002,2629.6,2629.4,2.26189701]
[1752061996694,0.7475,2629.5,2629.3,3.2078]
[1752061996893,1.40031002,2629.4,2629.3,3.2078]
[1752061997498,0.7475,2629.5,2629.3,3.2078]
[1752061998986,2.14781002,2629.5,2629.3,3.2078]
[1752062002695,2.14781002,2629.5,2629.1,31.65769701]
[1752062002898,8.11981002,2629.5,2629.1,31.65769701]
[1752062003099,8.11981002,2629.5,2629.1,5.46969701]
[1752062004294,1.40031002,2629.3,2629.0,2.26759718]
[1752062004494,1.40031002,2629.1,2629.0,0.00570017]
[1752062004800,1.40031002,2629.1,2628.8,7.89164777]
[1752062004801,4.60811002,2629.1,2628.8,2.26873784]
[1752062005097,4.60811002,2629.1,2628.4,7.7458637]
[1752062005098,1.40031002,2628.9,2628.4,32.79734777]
[1752062005397,7.37231002,2628.9,2628.4,32.79734777]
[1752062005601,7.37231002,2628.9,2628.4,34.05724777]
[1752062006199,7.37231002,2628.9,2628.4,30.6537]
[1752062008201,8.73401002,2628.9,2628.4,30.6537]
[1752062008705,3.2078,2629.1,2628.4,4.4677]
[1752062008894,0.73380017,2629.3,2628.8,4.60811002]
[1752062009097,0.73380017,2629.3,2628.9,2.0814]
[1752062009404,0.73380017,2629.3,2629.1,3.2078]
[1752062011508,2.13411019,2629.3,2629.1,3.2078]
[1752062013205,2.13411019,2629.3,2628.8,3.2078]
[1752062013410,1.40031002,2629.0,2628.8,3.2078]
[1752062013606,0.7466,2628.9,2628.8,3.2078]
[1752062014109,2.65011002,2629.2,2628.8,3.2078]
[1752062014400,0.7466,2629.1,2628.8,3.2078]
[1752062014607,26.19170017,2629.3,2628.9,1.40031002]
[1752062014812,26.19170017,2629.3,2628.9,2.73691002]
[1752062015108,26.19170017,2629.3,2628.9,1.3366]
[1752062015312,1.40031002,2629.2,2628.9,1.3366]
[1752062015503,26.19170017,2629.3,2628.9,1.3366]
[1752062016908,1.40031002,2629.2,2628.8,3.2078]
[1752062017110,2.70991002,2629.2,2628.8,3.2078]
[1752062020113,1.40601019,2629.3,2628.8,3.2078]
[1752062020412,27.59201019,2629.3,2628.9,1.2997]
[1752062020909,26.19170017,2629.3,2628.9,2.70001002]
[1752062021407,26.19170017,2629.3,2628.8,3.2078]
[1752062021408,0.00570017,2629.3,2629.2,1.40031002]
[1752062021812,0.00570017,2629.3,2629.2,6.40031002]
[1752062022112,3.2078,2630.0,2629.2,11.10355779]
[1752062022312,3.2078,2630.0,2629.7,1.40031002]
[1752062022511,3.2078,2630.0,2629.8,1.9637]
[1752062022712,1.40031002,2630.3,2629.9,3.2078]
[1752062022913,27.58531002,2630.3,2629.9,3.2078]
[1752062023716,28.92291002,2630.3,2629.9,3.2078]
[1752062024812,1.40031002,2630.1,2629.9,3.2078]
[1752062025212,0.7264,2630.0,2629.9,3.2078]
[1752062025915,0.7264,2630.0,2629.5,0.6939]
[1752062025916,0.7264,2630.0,2629.6,3.2078]
[1752062026517,1.40031002,2629.9,2629.6,3.2078]
[1752062029815,0.7264,2630.0,2629.6,3.2078]
[1752062031718,1.40031002,2629.9,2629.6,3.2078]
[1752062039221,7.37231002,2629.9,2629.6,3.2078]
[1752062040518,1.40031002,2629.7,2629.3,3.9541]
[1752062040715,1.40031002,2629.5,2629.3,3.9541]
[1752062041020,0.7673,2629.6,2629.3,3.9541]
[1752062042525,0.7673,2629.6,2629.4,1.2954]
[1752062042925,3.2078,2630.2,2629.5,1.40031002]
[1752062043226,0.7597,2630.1,2629.8,4.60811002]
[1752062043424,0.7597,2630.1,2629.9,0.7228]
[1752062044425,3.2078,2630.2,2629.9,0.7228]
[1752062044725,3.2078,2630.2,2629.9,2.0137]
[1752062045143,5.972,2630.3,2630.1,3.2078]
[1752062047020,0.7096,2630.4,2630.2,1.3141]
[1752062047225,26.172,2630.5,2630.2,1.3141]
[1752062047522,26.172,2630.5,2630.3,0.7258]
[1752062047925,1.40031002,2630.6,2630.3,0.7258]
[1752062048225,0.7741,2630.4,2630.2,1.3141]
[1752062048525,2.17441002,2630.4,2630.1,3.2078]
[1752062048929,2.17441002,2630.4,2630.0,0.7341]
[1752062051133,2.17441002,2630.4,2629.8,4.5295]
[1752062051134,1.40031002,2630.2,2629.8,4.5295]
[1752062052626,1.40031002,2630.2,2629.8,3.2078]
[1752062053030,1.40031002,2630.2,2629.8,4.5295]
[1752062053830,5.972,2630.1,2629.8,4.5295]
[1752062054632,1.40031002,2630.0,2629.8,3.2078]
[1752062054833,2.18271002,2630.0,2629.8,3.2078]
[1752062055038,5.972,2629.9,2629.8,3.2078]
[1752062055233,5.972,2629.9,2629.3,3.40354777]
[1752062055234,5.972,2629.9,2629.4,6.21309076]
[1752062055428,1.40031002,2629.8,2629.4,6.21309076]
[1752062055628,1.40031002,2629.8,2629.4,3.9508]
[1752062056332,1.40031002,2629.6,2629.4,3.9508]
[1752062056532,1.40031002,2629.6,2629.4,3.2078]
[1752062056735,0.7824,2629.5,2629.4,3.2078]
[1752062056934,6.7544,2629.5,2629.4,3.2078]
[1752062057835,5.972,2629.5,2629.4,3.2078]
[1752062058735,5.972,2629.5,2629.4,4.5698]
[1752062062935,5.972,2630.0,2629.4,4.5698]
[1752062063138,5.972,2630.0,2629.5,3.37291002]
[1752062063338,5.972,2630.0,2629.8,3.2078]
[1752062064341,5.972,2630.0,2629.8,4.4621]
[1752062068746,6.7515,2630.2,2629.9,1.40031002]
[1752062068940,6.7515,2630.2,2630.0,0.7524]
[1752062069649,6.7515,2630.2,2629.9,1.3063]
[1752062070053,6.7515,2630.2,2629.8,3.9393]
[1752062072048,6.7515,2630.2,2629.8,5.2042]
[1752062076654,6.7515,2630.2,2630.1,3.2078]
[1752062076848,0.7795,2630.2,2630.1,3.2078]
[1752062082859,0.7795,2630.2,2630.0,3.2078]
[1752062086582,0.7795,2630.2,2630.0,4.60811002]
[1752062087160,5.972,2630.4,2630.0,4.60811002]
[1752062087361,5.972,2630.4,2630.3,3.2078]
[1752062087656,6.7187,2630.6,2630.3,3.2078]
[1752062087861,6.7187,2630.6,2630.3,4.60811002]
[1752062088057,6.7187,2630.6,2630.3,5.97931002]
[1752062088861,6.7187,2630.6,2630.3,3.2078]
[1752062092461,1.2801,2630.5,2630.3,3.2078]
[1752062092664,8.11901002,2630.6,2630.3,3.2078]
[1752062093465,6.7187,2630.6,2630.3,3.2078]
[1752062096269,6.7187,2630.6,2630.3,4.60811002]
[1752062102071,8.11901002,2630.6,2630.3,3.2078]
[1752062102271,1.40031002,2630.4,2630.0,0.7749]
[1752062102472,1.40031002,2630.4,2630.2,3.2078]
[1752062102770,1.3299,2630.5,2630.2,3.2078]
[1752062104474,1.40031002,2630.4,2629.9,5.47009076]
[1752062104862,1.3299,2630.3,2629.9,5.47009076]
[1752062105573,0.7499,2630.2,2629.9,5.47009076]
[1752062105770,1.40031002,2630.0,2629.9,5.47009076]
[1752062105976,2.15021002,2630.2,2629.8,2.26229076]
[1752062106176,1.2534,2630.1,2629.8,2.26229076]
[1752062106673,1.2534,2630.1,2629.7,2.26229076]
[1752062107074,1.2534,2630.1,2629.9,3.2078]
[1752062108272,1.2534,2630.1,2629.7,2.26229076]
[1752062108473,1.2534,2630.1,2629.6,8.23590078]
[1752062110077,7.2254,2630.1,2629.6,8.23590078]
[1752062111673,5.972,2630.1,2629.9,3.2078]
[1752062111873,0.7499,2630.2,2629.9,3.2078]
[1752062112876,1.2923,2630.1,2629.9,3.2078]
[1752062115678,2.15021002,2630.2,2629.9,3.2078]
[1752062116279,2.15021002,2630.2,2629.8,3.2078]
[1752062118277,1.341,2630.1,2629.8,3.2078]
[1752062121684,1.40031002,2630.0,2629.8,3.2078]
[1752062123280,1.254,2629.9,2629.8,3.2078]
[1752062123882,1.254,2629.9,2629.5,0.7753]
[1752062124084,0.753,2629.8,2629.5,0.7753]
[1752062126789,0.753,2629.8,2629.5,2.0765]
[1752062130387,2.15331002,2629.8,2629.5,2.0765]
[1752062130592,1.40031002,2629.6,2629.4,5.47009076]
[1752062130794,7.37231002,2629.6,2629.2,2.26229076]
[1752062130995,1.40031002,2629.3,2629.2,2.26229076]
[1752062131494,1.40031002,2629.5,2629.1,3.00569076]
[1752062131893,5.972,2629.6,2629.3,3.2078]
[1752062132896,7.87322,2629.6,2629.3,3.2078]
[1752062133095,0.76053,2629.4,2629.3,3.2078]
[1752062134111,0.76053,2629.4,2629.3,4.5561]
[1752062136091,0.76053,2629.4,2629.3,3.2078]
[1752062136786,1.48553,2629.4,2629.3,3.2078]
[1752062141502,0.76059,2629.2,2629.1,0.7434]
[1752062141703,0.76062,2629.1,2629.0,3.21350017]
[1752062142100,0.76062,2629.1,2629.0,0.00570017]
[1752062145528,6.73262,2629.1,2629.0,0.00570017]
[1752062146510,7.87358,2629.1,2628.6,4.5298]
[1752062146715,0.76073,2628.7,2628.6,5.2393]
[1752062147404,0.76073,2628.7,2628.6,3.9173]
[1752062148198,2.16104002,2628.7,2628.6,3.9173]
[1752062148608,2.16104002,2628.7,2628.6,3.2078]
[1752062149107,0.76079,2628.5,2628.4,0.7133]
[1752062159708,0.76082,2628.4,2628.3,1.2857]
[1752062159912,0.76082,2628.4,2628.3,2.073]
[1752062162315,0.76085,2628.3,2628.2,3.2078]
[1752062162819,0.76085,2628.3,2628.2,3.96868]
[1752062163021,0.76085,2628.3,2628.2,5.21658]
[1752062163322,0.76085,2628.3,2628.2,4.4557]
[1752062164023,0.76085,2628.3,2628.2,5.21658]
[1752062164217,0.76085,2628.3,2628.2,4.4557]
[1752062164522,0.76085,2628.3,2628.2,3.2078]
[1752062166223,0.76085,2628.3,2628.2,4.485]
[1752062167523,0.76085,2628.3,2628.2,5.24588]
[1752062168522,5.972,2628.6,2628.5,0.76079]
[1752062168722,5.972,2628.6,2628.5,7.63675622]
[1752062168922,5.972,2628.6,2628.5,7.25540908]
[1752062169114,5.972,2628.6,2628.5,6.99125288]
[1752062169318,0.76064,2629.1,2628.8,1.90174]
[1752062169522,0.76064,2629.1,2629.0,4.98738288]